fUSD/lending_fUSD_20240729
["ID","MTS","AMOUNT","RATE_DAILY","PERIOD"]
[333588713,1722261057485,-500.0,0.00010997,2]
[333588714,1722261057494,-500.0,0.00010997,2]
[333588715,1722261057503,-500.0,0.00010997,2]
[333588716,1722261057512,-721.02,0.00010997,2]
[333588717,1722261057521,-10910.5684877,0.00010997,2]
[333588718,1722261057530,-335.0,0.00010997,2]
[333588719,1722261057541,-863.395,0.00010997,2]
[333588720,1722261057550,-15579.153,0.00010997,2]
[333588721,1722261057559,-749.93,0.00010997,2]
[333588722,1722261057568,-219.761,0.00010997,2]
[333588723,1722261057577,-157.364,0.00010997,2]
[333588724,1722261057587,-150.0,0.00010997,2]
[333588725,1722261057597,-162.737,0.00010997,2]
[333588726,1722261057607,-286.00443073,0.00010998,2]
[333588727,1722261057617,-520.44287434,0.00010998,2]
[333588728,1722261057627,-500.0,0.00010998,2]
[333588729,1722261057636,-500.0,0.00010998,2]
[333588730,1722261057646,-443.99596614,0.00010998,2]
[333588731,1722261057655,-500.0,0.00010998,2]
[333588732,1722261057666,-500.0,0.00010998,2]
[333588733,1722261057675,-310.822232,0.00010998,2]
[333588734,1722261057684,-500.0,0.00010998,2]
[333588735,1722261057693,-500.0,0.00010998,2]
[333588736,1722261057702,-325.2524405,0.00010998,2]
[333588737,1722261057711,-500.0,0.00010998,2]
[333588738,1722261057720,-500.0,0.00010998,2]
[333588739,1722261057729,-500.0,0.00010998,2]
[333588740,1722261057739,-500.0,0.00010998,2]
[333588741,1722261057748,-500.0,0.00010998,2]
[333588742,1722261057757,-505.2,0.00010998,2]
[333588743,1722261057766,-500.0,0.00010998,2]
[333588744,1722261057775,-326.11975108,0.00010998,2]
[333588745,1722261057784,-500.0,0.00010998,2]
[333588746,1722261057793,-500.0,0.00010998,2]
[333588747,1722261057802,-500.0,0.00010998,2]
[333588748,1722261057812,-500.0,0.00010998,2]
[333588749,1722261057821,-500.0,0.00010998,2]
[333588750,1722261057830,-500.0,0.00010998,2]
[333588751,1722261057840,-719.97,0.00010998,2]
[333588752,1722261057849,-719.97,0.00010998,2]
[333588753,1722261057858,-719.97,0.00010998,2]
[333588754,1722261057868,-500.0,0.00010998,2]
[333588755,1722261057878,-719.97,0.00010998,2]
[333588756,1722261057889,-719.97,0.00010998,2]
[333588757,1722261057898,-719.97,0.00010998,2]
[333588758,1722261057907,-500.0,0.00010998,2]
[333588759,1722261057917,-513.43600148,0.00010998,2]
[333588760,1722261057927,-500.0,0.00010998,2]
[333588761,1722261057936,-326.34961619,0.00010998,2]
[333588762,1722261057945,-500.0,0.00010998,2]
[333588763,1722261057954,-500.0,0.00010998,2]
[333588764,1722261057964,-500.0,0.00010998,2]
[333588765,1722261057974,-500.0,0.00010998,2]
[333588766,1722261057983,-506.16771997,0.00010998,2]
[333588767,1722261057993,-500.0,0.00010998,2]
[333588768,1722261058003,-169.27553936,0.00010998,2]
[333588769,1722261058012,-500.0,0.00010998,2]
[333588770,1722261058021,-500.0,0.00010998,2]
[333588771,1722261058030,-500.0,0.00010998,2]
[333588772,1722261058042,-510.8564866,0.00010998,2]
[333588773,1722261058052,-500.0,0.00010998,2]
[333588774,1722261058061,-500.0,0.00010998,2]
[333588775,1722261058071,-500.0,0.00010998,2]
[333588776,1722261058080,-500.0,0.00010998,2]
[333588777,1722261058089,-500.0,0.00010998,2]
[333588778,1722261058098,-500.0,0.00010998,2]
[333588779,1722261058107,-500.0,0.00010998,2]
[333588780,1722261058117,-500.0,0.00010998,2]
[333588781,1722261058126,-500.0,0.00010998,2]
[333588782,1722261058135,-335.79859085,0.00010998,2]
[333588783,1722261058144,-500.0,0.00010998,2]
[333588784,1722261058302,-511.02286787,0.00010998,2]
[333588785,1722261058313,-352.68,0.00010998,2]
[333588786,1722261058322,-500.0,0.00010998,2]
[333588787,1722261058332,-500.0,0.00010998,2]
[333588788,1722261058341,-500.0,0.00010998,2]
[333588789,1722261058350,-500.0,0.00010998,2]
[333588790,1722261058360,-500.0,0.00010998,2]
[333588791,1722261058369,-500.0,0.00010998,2]
[333588792,1722261058379,-504.52218127,0.00010998,2]
[333588793,1722261058388,-500.0,0.00010998,2]
[333588794,1722261058398,-500.0,0.00010998,2]
[333588795,1722261058407,-500.0,0.00010998,2]
[333588796,1722261058417,-500.0,0.00010998,2]
[333588797,1722261058427,-500.0,0.00010998,2]
[333588798,1722261058436,-526.10317978,0.00010998,2]
[333588799,1722261058446,-500.0,0.00010998,2]
[333588800,1722261058455,-500.0,0.00010998,2]
[333588801,1722261058465,-500.0,0.00010998,2]
[333588802,1722261058474,-500.0,0.00010998,2]
[333588803,1722261058486,-500.0,0.00010998,2]
[333588804,1722261058495,-500.0,0.00010998,2]
[333588805,1722261058505,-500.0,0.00010998,2]
[333588806,1722261058514,-155.99691816,0.00010998,2]
[333588807,1722261058523,-505.77032161,0.00010998,2]
[333588808,1722261058532,-500.0,0.00010998,2]
[333588809,1722261058542,-500.0,0.00010998,2]
[333588810,1722261058551,-500.0,0.00010998,2]
[333588811,1722261058560,-500.0,0.00010998,2]
[333588812,1722261058570,-523.19081935,0.00010998,2]
[333588813,1722261058579,-500.0,0.00010998,2]
[333588814,1722261058587,-500.0,0.00010998,2]
[333588815,1722261058596,-516.0240602,0.00010998,2]
[333588816,1722261058605,-510.33760184,0.00010998,2]
[333588817,1722261058614,-500.0,0.00010998,2]
[333588818,1722261058623,-500.0,0.00010998,2]
[333588819,1722261058633,-500.0,0.00010998,2]
[333588820,1722261058642,-503.88922073,0.00010998,2]
[333588821,1722261058651,-500.0,0.00010998,2]
[333588822,1722261058660,-500.0,0.00010998,2]
[333588823,1722261058669,-500.0,0.00010998,2]
[333588824,1722261058678,-500.0,0.00010998,2]
[333588825,1722261058687,-500.0,0.00010998,2]
[333588826,1722261058696,-500.0,0.00010998,2]
[333588827,1722261058705,-500.0,0.00010998,2]
[333588828,1722261058714,-500.0,0.00010998,2]
[333588829,1722261058724,-500.0,0.00010998,2]
[333588830,1722261058733,-500.0,0.00010998,2]
[333588831,1722261058742,-500.0,0.00010998,2]
[333588832,1722261058751,-500.0,0.00010998,2]
[333588833,1722261058760,-500.0,0.00010998,2]
[333588834,1722261058769,-516.87822067,0.00010998,2]
[333588835,1722261058778,-500.0,0.00010998,2]
[333588836,1722261058789,-500.0,0.00010998,2]
[333588837,1722261058799,-500.0,0.00010998,2]
[333588838,1722261058808,-500.0,0.00010998,2]
[333588839,1722261058817,-500.0,0.00010998,2]
[333588840,1722261058826,-518.11206601,0.00010998,2]
[333588841,1722261058836,-600.4,0.00010998,2]
[333588842,1722261058846,-600.4,0.00010998,2]
[333588843,1722261058855,-633.75,0.00010998,2]
[333588844,1722261058865,-633.75,0.00010998,2]
[333588845,1722261058875,-500.0,0.00010998,2]
[333588846,1722261058884,-500.0,0.00010998,2]
[333588847,1722261058897,-500.0,0.00010998,2]
[333588848,1722261058907,-500.0,0.00010998,2]
[333588849,1722261058916,-500.0,0.00010998,2]
[333588850,1722261058926,-500.0,0.00010998,2]
[333588851,1722261058935,-500.0,0.00010998,2]
[333588852,1722261058946,-500.0,0.00010998,2]
[333588853,1722261058955,-500.0,0.00010998,2]
[333588854,1722261058967,-500.0,0.00010998,2]
[333588855,1722261058976,-500.0,0.00010998,2]
[333588856,1722261058986,-500.0,0.00010998,2]
[333588857,1722261058995,-500.0,0.00010998,2]
[333588858,1722261059004,-374.48593732,0.00010998,2]
[333588859,1722261059014,-500.0,0.00010998,2]
[333588860,1722261059023,-500.0,0.00010998,2]
[333588861,1722261059032,-500.0,0.00010998,2]
[333588862,1722261059042,-500.0,0.00010998,2]
[333588863,1722261059052,-500.0,0.00010998,2]
[333588864,1722261059062,-500.0,0.00010998,2]
[333588865,1722261059071,-500.0,0.00010998,2]
[333588866,1722261059081,-500.0,0.00010998,2]
[333588867,1722261059090,-535.92,0.00010998,2]
[333588868,1722261059099,-535.92,0.00010998,2]
[333588869,1722261059108,-672.36,0.00010998,2]
[333588870,1722261059117,-672.36,0.00010998,2]
[333588871,1722261059126,-500.0,0.00010998,2]
[333588872,1722261059135,-500.0,0.00010998,2]
[333588873,1722261059145,-500.0,0.00010998,2]
[333588874,1722261059154,-500.0,0.00010998,2]
[333588875,1722261059163,-500.0,0.00010998,2]
[333588876,1722261059172,-500.0,0.00010998,2]
[333588877,1722261059181,-638.45,0.00010998,2]
[333588878,1722261059190,-638.45,0.00010998,2]
[333588879,1722261059200,-638.45,0.00010998,2]
[333588880,1722261059209,-638.45,0.00010998,2]
[333588881,1722261059218,-500.0,0.00010998,2]
[333588882,1722261059228,-500.0,0.00010998,2]
[333588883,1722261059237,-500.0,0.00010998,2]
[333588884,1722261059246,-500.0,0.00010998,2]
[333588885,1722261059255,-500.0,0.00010998,2]
[333588886,1722261059264,-500.0,0.00010998,2]
[333588887,1722261059273,-500.0,0.00010998,2]
[333588888,1722261059283,-500.0,0.00010998,2]
[333588889,1722261059293,-500.0,0.00010998,2]
[333588890,1722261059303,-500.0,0.00010998,2]
[333588891,1722261059312,-500.0,0.00010998,2]
[333588892,1722261059321,-649.03156801,0.00010998,2]
[333588893,1722261059331,-500.0,0.00010998,2]
[333588894,1722261059340,-500.0,0.00010998,2]
[333588895,1722261059349,-500.0,0.00010998,2]
[333588896,1722261059358,-256.15,0.00010998,2]
[333588897,1722261059367,-500.0,0.00010998,2]
[333588898,1722261059376,-500.0,0.00010998,2]
[333588899,1722261059386,-534.36,0.00010998,2]
[333588900,1722261059395,-534.36,0.00010998,2]
[333588901,1722261059404,-500.0,0.00010998,2]
[333588902,1722261059414,-500.0,0.00010998,2]
[333588903,1722261059424,-778.35,0.00010998,2]
[333588904,1722261059433,-778.35,0.00010998,2]
[333588905,1722261059443,-500.0,0.00010998,2]
[333588906,1722261059452,-500.0,0.00010998,2]
[333588907,1722261059461,-500.0,0.00010998,2]
[333588908,1722261059470,-500.0,0.00010998,2]
[333588909,1722261059479,-500.0,0.00010998,2]
[333588910,1722261059489,-500.0,0.00010998,2]
[333588911,1722261059499,-500.0,0.00010998,2]
[333588912,1722261059509,-500.0,0.00010998,2]
[333588913,1722261059519,-500.0,0.00010998,2]
[333588914,1722261059529,-500.0,0.00010998,2]
[333588915,1722261059540,-500.0,0.00010998,2]
[333588916,1722261059551,-500.0,0.00010998,2]
[333588917,1722261059561,-500.0,0.00010998,2]
[333588918,1722261059571,-500.0,0.00010998,2]
[333588919,1722261059581,-500.0,0.00010998,2]
[333588920,1722261059591,-500.0,0.00010998,2]
[333588921,1722261059601,-483.22,0.00010998,2]
[333588922,1722261059611,-620.86,0.00010998,2]
[333588923,1722261059620,-620.86,0.00010998,2]
[333588924,1722261059630,-620.86,0.00010998,2]
[333588925,1722261059640,-620.86,0.00010998,2]
[333588926,1722261059650,-500.0,0.00010998,2]
[333588927,1722261059660,-500.0,0.00010998,2]
[333588928,1722261059670,-500.0,0.00010998,2]
[333588929,1722261059679,-600.31,0.00010998,2]
[333588930,1722261059689,-526.64710758,0.00010998,2]
[333588931,1722261059699,-500.0,0.00010998,2]
[333588932,1722261059709,-500.0,0.00010998,2]
[333588933,1722261059719,-500.0,0.00010998,2]
[333588934,1722261059729,-274.8315141,0.00010998,2]
[333588935,1722261059739,-1864.25,0.00010998,2]
[333588936,1722261059748,-1864.25,0.00010998,2]
[333588937,1722261059757,-1864.25,0.00010998,2]
[333588938,1722261059766,-1864.25,0.00010998,2]
[333588939,1722261059776,-634.33,0.00010998,2]
[333588940,1722261059788,-1327.45,0.00010998,2]
[333588941,1722261059798,-1327.45,0.00010998,2]
[333588942,1722261059807,-1327.45,0.00010998,2]
[333588943,1722261059817,-1327.45,0.00010998,2]
[333588944,1722261059827,-511.69,0.00010998,2]
[333588945,1722261059836,-500.0,0.00010998,2]
[333588946,1722261059845,-511.69,0.00010998,2]
[333588947,1722261059855,-500.0,0.00010998,2]
[333588948,1722261059864,-511.69,0.00010998,2]
[333588949,1722261059875,-500.0,0.00010998,2]
[333588950,1722261059888,-500.0,0.00010998,2]
[333588951,1722261059897,-511.69,0.00010998,2]
[333588952,1722261059908,-619.11,0.00010998,2]
[333588953,1722261059919,-619.11,0.00010998,2]
[333588954,1722261059929,-619.11,0.00010998,2]
[333588955,1722261059939,-619.11,0.00010998,2]
[333588956,1722261059950,-500.0,0.00010998,2]
[333588957,1722261059963,-500.0,0.00010998,2]
[333588958,1722261059973,-500.0,0.00010998,2]
[333588959,1722261059983,-500.0,0.00010998,2]
[333588960,1722261059994,-500.0,0.00010998,2]
[333588961,1722261060004,-500.0,0.00010998,2]
[333588962,1722261060013,-500.0,0.00010998,2]
[333588963,1722261060023,-500.0,0.00010998,2]
[333588964,1722261060032,-500.0,0.00010998,2]
[333588965,1722261060045,-512.56656734,0.00010998,2]
[333588966,1722261060057,-270.28100598,0.00010998,2]
[333588967,1722261060067,-500.0,0.00010998,2]
[333588968,1722261060078,-500.0,0.00010998,2]
[333588969,1722261060088,-500.0,0.00010998,2]
[333588970,1722261060098,-500.0,0.00010998,2]
[333588971,1722261060107,-500.0,0.00010998,2]
[333588972,1722261060117,-500.0,0.00010998,2]
[333588973,1722261060126,-320.10121056,0.00010998,2]
[333588974,1722261060423,-179.89878944,0.00010998,2]
[333588975,1722261060432,-500.0,0.00010998,2]
[333588976,1722261060441,-362.06,0.00010998,2]
[333588977,1722261060450,-500.0,0.00010998,2]
[333588978,1722261060459,-445.91512558,0.00010998,2]
[333588979,1722261060471,-54.08487442,0.00010998,2]
[333588980,1722261060480,-500.0,0.00010998,2]
[333588981,1722261060490,-500.0,0.00010998,2]
[333588982,1722261060499,-500.0,0.00010998,2]
[333588983,1722261060508,-1225.76512558,0.00010998,2]
[333588984,1722261060519,-170.12487442,0.00010998,2]
[333588985,1722261060529,-523.43512558,0.00010998,2]
[333589050,1722261283009,-150.86,7.891e-05,2]
[333589051,1722261283033,-169.55,8.219e-05,2]
[333589052,1722261283059,-4679.59,9.815e-05,2]
[333589092,1722261659033,-200.74688706,0.00011105,4]
[333589093,1722261678228,-624.44,8.219e-05,2]
[333589094,1722261678256,-1000.0,9.673e-05,2]
[333589095,1722261678282,-150.0,9.714e-05,2]
[333589096,1722261678309,-469.69545328,9.714e-05,2]
[333589097,1722261678336,-250.0,9.728e-05,2]
[333589098,1722261678363,-181.44,9.764e-05,2]
[333589099,1722261678401,-150.0,9.814e-05,2]
[333589100,1722261678431,-19220.41,9.815e-05,2]
[333589101,1722261678459,-2563.29369079,9.815e-05,2]
[333589102,1722261678487,-9262.00526818,9.815e-05,2]
[333589103,1722261678514,-181.15430097,9.815e-05,2]
[333589104,1722261678541,-2000.0,9.823e-05,2]
[333589105,1722261678567,-496.89,9.844e-05,2]
[333589106,1722261678594,-150.86,9.864e-05,2]
[333589107,1722261678620,-499.99,9.864e-05,2]
[333589108,1722261678651,-1000.0,0.0001,3]
[333589109,1722261678677,-371.5992053,0.0001,2]
[333589110,1722261686159,-700.0,0.00010068,2]
[333589111,1722261686188,-500.0,0.00010068,2]
[333589112,1722261686217,-600.0,0.00010068,2]
[333589113,1722261686244,-1600.0,0.000101,3]
[333589114,1722261686273,-600.0,0.00010142,2]
[333589115,1722261686302,-2100.0,0.000102,3]
[333589116,1722261686329,-2700.0,0.000103,3]
[333589117,1722261686355,-500.0,0.000104,3]
[333589118,1722261686382,-624.44,0.00010463,2]
[333589119,1722261686411,-500.0,0.000105,3]
[333589120,1722261686437,-621.96,0.00010555,2]
[333589121,1722261686463,-600.0,0.00010565,2]
[333589122,1722261686491,-500.0,0.000106,3]
[333589123,1722261686517,-261.49,0.000106,2]
[333589124,1722261686544,-500.0,0.000107,3]
[333589125,1722261686570,-621.96,0.00010738,2]
[333589126,1722261686598,-3312.3014,0.00010748,2]
[333589127,1722261686624,-500.0,0.0001075,2]
[333589128,1722261686651,-500.0,0.00010759,2]
[333589129,1722261686678,-500.0,0.00010768,2]
[333589130,1722261686704,-621.96,0.00010775,2]
[333589131,1722261686730,-500.0,0.00010777,2]
[333589132,1722261686756,-500.0,0.00010786,2]
[333589133,1722261686782,-621.96,0.00010789,2]
[333589134,1722261686807,-500.0,0.00010794,2]
[333589135,1722261687034,-255.0,0.00010795,2]
[333589136,1722261687061,-2910.43918316,0.00010799,2]
[333589137,1722261687089,-1049.0,0.000108,3]
[333589138,1722261687115,-500.0,0.00010803,2]
[333589139,1722261687144,-621.96,0.00010811,2]
[333589140,1722261687172,-500.0,0.00010812,2]
[333589141,1722261687200,-500.0,0.00010821,2]
[333589142,1722261687228,-500.0,0.0001083,2]
[333589143,1722261687257,-500.0,0.00010838,2]
[333589144,1722261687284,-621.96,0.00010839,2]
[333589145,1722261687311,-500.0,0.00010847,2]
[333589146,1722261687338,-621.96,0.00010848,2]
[333589148,1722261863838,1005.59206147,0.00015,30]
[333589154,1722262106422,524.8,0.0002,120]
[333589183,1722262232008,-150.86,7.878e-05,2]
[333589185,1722262232019,-614.02,8.219e-05,2]
[333589186,1722262232029,-13063.22,9.838e-05,2]
[333589187,1722262232041,-6660.0,9.838e-05,2]
[333589188,1722262232052,-3182.66143813,9.838e-05,2]
[333589189,1722262232064,-994.11856187,9.838e-05,2]
[333589190,1722262232074,-2000.0,9.898e-05,2]
[333589191,1722262232084,-300.0,9.959e-05,2]
[333589192,1722262232093,-70.74973895,9.959e-05,2]
[333589193,1722262232112,-229.25026105,9.959e-05,2]
[333589194,1722262232122,-1250.0,0.0001,2]
[333589195,1722262232132,-371.5992053,0.0001,2]
[333589196,1722262232141,-600.0,0.00010068,2]
[333589197,1722262232151,-614.02,0.0001047,2]
[333589198,1722262232161,-1025.07548397,0.000105,2]
[333589199,1722262232171,-500.0,0.00010654,2]
[333589200,1722262232180,-500.0,0.00010662,2]
[333589201,1722262232400,-511.62,0.00010662,2]
[333589202,1722262232415,-8765.68,0.00010662,2]
[333589203,1722262232425,-500.0,0.00010671,2]
[333589204,1722262232434,-500.0,0.0001068,2]
[333589205,1722262232443,-500.0,0.00010689,2]
[333589206,1722262232454,-500.0,0.00010698,2]
[333589207,1722262232463,-500.0,0.00010706,2]
[333589208,1722262232472,-500.0,0.00010715,2]
[333589209,1722262232482,-442.94115958,0.00010724,2]
[333589210,1722262232493,-57.05884042,0.00010724,2]
[333589211,1722262232502,-500.0,0.00010733,2]
[333589212,1722262232516,-431.75878006,0.00010742,2]
[333589213,1722262232531,-68.24121994,0.00010742,2]
[333589214,1722262232541,-534.88,0.00010843,2]
[333589215,1722262232551,-860.49,0.00010848,2]
[333589216,1722262232560,-534.88,0.00010848,2]
[333589217,1722262232569,-1955.61306331,0.00010849,2]
[333589218,1722262232579,-1955.61306331,0.00010853,2]
[333589219,1722262232590,-500.0,0.00010856,2]
[333589220,1722262232601,-150.0,0.00010857,2]
[333589221,1722262232611,-603.0344,0.00010858,2]
[333589222,1722262232620,-678.9246,0.00010858,2]
[333589223,1722262232630,-1000.0,0.00010858,2]
[333589224,1722262232639,-500.0,0.00010865,2]
[333589225,1722262232648,-534.88,0.00010876,2]
[333589226,1722262232658,-1000.0,0.00010882,2]
[333589227,1722262232667,-1955.61306331,0.00010886,2]
[333589228,1722262232677,-534.88,0.00010888,2]
[333589229,1722262232686,-534.88,0.00010888,2]
[333589230,1722262232695,-534.88,0.00010888,2]
[333589231,1722262232707,-534.88,0.00010888,2]
[333589232,1722262232717,-600.0,0.0001089,2]
[333589233,1722262232726,-534.88,0.0001089,2]
[333589234,1722262232736,-534.88,0.0001089,2]
[333589235,1722262232745,-202.37217045,0.00010898,2]
[333589236,1722262232755,-1401.1305,0.00010898,2]
[333589237,1722262232764,-374.7038,0.00010898,2]
[333589238,1722262232773,-11765.223,0.00010898,2]
[333589239,1722262232785,-168.84536314,0.000109,2]
[333589240,1722262232794,-221.07,0.00010904,3]
[333589241,1722262232803,-500.0,0.00010912,2]
[333589242,1722262232813,-534.88,0.00010912,2]
[333589243,1722262232822,-534.88,0.00010912,2]
[333589244,1722262232831,-534.88,0.00010912,2]
[333589245,1722262232840,-8816.013007,0.00010922,2]
[333589246,1722262232849,-534.88,0.00010935,2]
[333589247,1722262232859,-534.88,0.00010935,2]
[333589248,1722262232869,-1000.0,0.00010945,2]
[333589249,1722262232879,-1000.0,0.00010945,2]
[333589250,1722262232889,-1000.0,0.00010945,2]
[333589251,1722262232898,-1000.0,0.00010945,2]
[333589252,1722262232907,-1000.0,0.00010945,2]
[333589253,1722262232916,-1000.0,0.00010945,2]
[333589254,1722262232926,-1000.0,0.00010945,2]
[333589255,1722262232935,-1000.0,0.00010945,2]
[333589256,1722262232944,-1000.0,0.00010945,2]
[333589257,1722262232957,-1000.0,0.00010945,2]
[333589258,1722262232966,-558.1699,0.00010945,2]
[333589259,1722262232975,-534.88,0.00010947,2]
[333589260,1722262232984,-12439.63375223,0.00010957,2]
[333589261,1722262232994,-500.0,0.00010958,2]
[333589262,1722262233003,-500.0,0.00010958,2]
[333589263,1722262233012,-500.0,0.00010958,2]
[333589264,1722262233022,-500.0,0.00010958,2]
[333589265,1722262233032,-500.0,0.00010958,2]
[333589266,1722262233042,-500.0,0.00010958,2]
[333589267,1722262233056,-500.0,0.00010958,2]
[333589268,1722262233066,-501.49696766,0.00010958,2]
[333589269,1722262233076,-501.40387767,0.00010958,2]
[333589270,1722262233086,-180.37836583,0.00010958,2]
[333589271,1722262233097,-501.34733642,0.00010958,2]
[333589272,1722262233107,-500.0,0.00010958,2]
[333589273,1722262233117,-500.0,0.00010958,2]
[333589274,1722262233127,-505.336635,0.00010958,2]
[333589275,1722262233137,-500.0,0.00010958,2]
[333589276,1722262233147,-500.0,0.00010958,2]
[333589277,1722262233158,-500.0,0.00010958,2]
[333589278,1722262233168,-151.52794891,0.00010958,2]
[333589279,1722262233178,-500.0,0.00010958,2]
[333589280,1722262233188,-500.0,0.00010958,2]
[333589281,1722262233199,-373.11274264,0.00010958,2]
[333589282,1722262233213,-500.0,0.00010958,2]
[333589283,1722262233223,-500.0,0.00010958,2]
[333589284,1722262233233,-500.0,0.00010958,2]
[333589285,1722262233244,-500.0,0.00010958,2]
[333589286,1722262233254,-500.0,0.00010958,2]
[333589287,1722262233264,-500.0,0.00010958,2]
[333589288,1722262233274,-521.65459171,0.00010958,2]
[333589289,1722262233284,-502.76718627,0.00010958,2]
[333589290,1722262233294,-500.0,0.00010958,2]
[333589291,1722262233304,-500.0,0.00010958,2]
[333589292,1722262233314,-500.0,0.00010958,2]
[333589293,1722262233324,-500.0,0.00010958,2]
[333589294,1722262233334,-500.0,0.00010958,2]
[333589295,1722262233345,-500.0,0.00010958,2]
[333589296,1722262233355,-500.0,0.00010958,2]
[333589297,1722262233365,-508.48227854,0.00010958,2]
[333589298,1722262233375,-500.0,0.00010958,2]
[333589299,1722262233386,-500.0,0.00010958,2]
[333589300,1722262233396,-500.76650674,0.00010958,2]
[333589301,1722262233406,-500.0,0.00010958,2]
[333589302,1722262233416,-500.0,0.00010958,2]
[333589303,1722262233426,-500.0,0.00010958,2]
[333589304,1722262233435,-500.0,0.00010958,2]
[333589305,1722262233445,-500.0,0.00010958,2]
[333589306,1722262233458,-500.0,0.00010958,2]
[333589307,1722262233468,-340.16114542,0.00010958,2]
[333589308,1722262233478,-500.0,0.00010958,2]
[333589309,1722262233488,-500.0,0.00010958,2]
[333589310,1722262233498,-500.0,0.00010958,2]
[333589311,1722262233510,-199.94426896,0.00010958,2]
[333589312,1722262233520,-500.0,0.00010958,2]
[333589313,1722262233532,-500.0,0.00010958,2]
[333589314,1722262233542,-500.0,0.00010958,2]
[333589315,1722262233552,-500.0,0.00010958,2]
[333589316,1722262233562,-500.0,0.00010958,2]
[333589317,1722262233572,-500.0,0.00010958,2]
[333589318,1722262233582,-500.0,0.00010958,2]
[333589319,1722262233592,-500.0,0.00010958,2]
[333589320,1722262233603,-500.0,0.00010958,2]
[333589321,1722262233613,-500.0,0.00010958,2]
[333589322,1722262233623,-500.0,0.00010958,2]
[333589323,1722262233633,-500.0,0.00010958,2]
[333589324,1722262233643,-500.0,0.00010958,2]
[333589325,1722262233653,-500.0,0.00010958,2]
[333589326,1722262233662,-500.0,0.00010958,2]
[333589327,1722262233672,-500.0,0.00010958,2]
[333589328,1722262233681,-500.0,0.00010958,2]
[333589329,1722262233691,-500.0,0.00010958,2]
[333589330,1722262233700,-500.0,0.00010958,2]
[333589331,1722262233715,-500.0,0.00010958,2]
[333589332,1722262233725,-500.0,0.00010958,2]
[333589333,1722262233735,-500.0,0.00010958,2]
[333589334,1722262233744,-500.0,0.00010958,2]
[333589335,1722262233754,-500.0,0.00010958,2]
[333589336,1722262233764,-500.0,0.00010958,2]
[333589337,1722262233774,-500.0,0.00010958,2]
[333589338,1722262233784,-500.0,0.00010958,2]
[333589339,1722262233794,-500.0,0.00010958,2]
[333589340,1722262233803,-500.0,0.00010958,2]
[333589341,1722262233813,-502.55772799,0.00010958,2]
[333589342,1722262233823,-500.0,0.00010958,2]
[333589343,1722262233833,-500.0,0.00010958,2]
[333589344,1722262233842,-500.0,0.00010958,2]
[333589345,1722262233852,-503.68463206,0.00010958,2]
[333589346,1722262233861,-500.0,0.00010958,2]
[333589347,1722262233871,-245.02232127,0.00010958,2]
[333589348,1722262233880,-500.0,0.00010958,2]
[333589349,1722262233890,-500.0,0.00010958,2]
[333589350,1722262233900,-500.0,0.00010958,2]